fUST/lending_fUST_20250205
["ID","MTS","AMOUNT","RATE_DAILY","PERIOD"]
[351722512,1738765838587,-17755.1,0.00015463,2]
[351722513,1738765838597,-627.09,0.00015463,2]
[351722514,1738765838607,-500.0,0.00015463,2]
[351722515,1738765838616,-500.0,0.00015463,2]
[351722516,1738765838626,-7386.5,0.00015463,2]
[351722517,1738765838635,-3395.84710029,0.00015463,2]
[351722518,1738765838659,-2360.30363825,0.00015463,2]
[351722519,1738765838774,-3164.59926146,0.00015463,2]
[351722520,1738765838784,-3873.05,0.00015463,2]
[351722521,1738765838794,-500.0,0.00015463,2]
[351722522,1738765838803,-500.0,0.00015463,2]
[351722523,1738765838812,-500.0,0.00015463,2]
[351722524,1738765838822,-2980.54,0.00015463,2]
[351722525,1738765838831,-1302.9,0.00015463,2]
[351722526,1738765838841,-625.69,0.00015463,2]
[351722527,1738765838850,-500.0,0.00015463,2]
[351722528,1738765838859,-1238.88,0.00015463,2]
[351722529,1738765838868,-500.0,0.00015463,2]
[351722530,1738765838877,-500.0,0.00015463,2]
[351722531,1738765838886,-1015.14,0.00015463,2]
[351722532,1738765838896,-6065.83,0.00015463,2]
[351722533,1738765838905,-1512.79,0.00015463,2]
[351722534,1738765838915,-3228.08,0.00015463,2]
[351722535,1738765838924,-2477.84,0.00015463,2]
[351722536,1738765838933,-7930.55,0.00015463,2]
[351722537,1738765838942,-3088.01,0.00015463,2]
[351722538,1738765838952,-12931.27,0.00015463,2]
[351722539,1738765838961,-632.73,0.00015463,2]
[351722540,1738765838971,-1253.97,0.00015463,2]
[351722541,1738765838981,-500.0,0.00015463,2]
[351722542,1738765838991,-626.28,0.00015463,2]
[351722543,1738765839000,-3748.11,0.00015463,2]
[351722544,1738765839012,-812.79,0.00015463,2]
[351722545,1738765839022,-500.0,0.00015463,2]
[351722546,1738765839031,-3076.87,0.00015463,2]
[351722547,1738765839041,-500.0,0.00015463,2]
[351722548,1738765839051,-500.0,0.00015463,2]
[351722549,1738765839061,-540.06417859,0.00015463,2]
[351722550,1738765839072,-500.0,0.00015463,2]
[351722551,1738765839082,-428.30663073,0.00015463,2]
[351722552,1738765839093,-839.51433284,0.00015463,2]
[351722553,1738765839102,-500.0,0.00015464,2]
[351722554,1738765839112,-507.41395718,0.00015464,2]
[351722555,1738765839122,-500.0,0.00015464,2]
[351722556,1738765839132,-560.83,0.00015464,2]
[351722557,1738765839142,-622.44,0.00015464,2]
[351722558,1738765839151,-500.0,0.00015464,2]
[351722559,1738765839160,-1228.21,0.00015464,2]
[351722560,1738765839171,-500.0,0.00015464,2]
[351722561,1738765839181,-500.0,0.00015464,2]
[351722562,1738765839190,-500.0,0.00015464,2]
[351722563,1738765839200,-568.13,0.00015464,2]
[351722564,1738765839210,-2056.59,0.00015464,2]
[351722565,1738765839220,-529.67,0.00015464,2]
[351722566,1738765839230,-1543.41,0.00015464,2]
[351722567,1738765839241,-500.0,0.00015464,2]
[351722568,1738765839254,-993.99,0.00015464,2]
[351722569,1738765839266,-1446.67,0.00015464,2]
[351722570,1738765839276,-500.0,0.00015464,2]
[351722571,1738765839287,-2452.9,0.00015464,2]
[351722572,1738765839296,-1206.56,0.00015464,2]
[351722573,1738765839306,-500.0,0.00015464,2]
[351722574,1738765839316,-636.02,0.00015464,2]
[351722575,1738765839326,-500.0,0.00015464,2]
[351722576,1738765839336,-500.0,0.00015464,2]
[351722577,1738765839346,-1645.86,0.00015464,2]
[351722578,1738765839356,-1744.86,0.00015464,2]
[351722579,1738765839366,-1576.87,0.00015464,2]
[351722580,1738765839377,-500.0,0.00015464,2]
[351722581,1738765839387,-500.0,0.00015464,2]
[351722582,1738765839396,-511.58,0.00015464,2]
[351722583,1738765839406,-1137.86,0.00015464,2]
[351722584,1738765839415,-2540.11,0.00015464,2]
[351722585,1738765839425,-500.0,0.00015464,2]
[351722586,1738765839436,-1514.53,0.00015464,2]
[351722587,1738765839446,-500.0,0.00015464,2]
[351722588,1738765839456,-500.0,0.00015464,2]
[351722589,1738765839465,-1062.71,0.00015464,2]
[351722590,1738765839475,-2026.2,0.00015464,2]
[351722591,1738765839485,-500.0,0.00015464,2]
[351722592,1738765839495,-500.0,0.00015464,2]
[351722593,1738765839516,-500.0,0.00015464,2]
[351722594,1738765839525,-500.0,0.00015464,2]
[351722595,1738765839534,-4529.89,0.00015464,2]
[351722596,1738765839543,-501.29092581,0.00015464,2]
[351722597,1738765839552,-500.0,0.00015464,2]
[351722598,1738765839561,-500.0,0.00015464,2]
[351722599,1738765839570,-3077.26,0.00015464,2]
[351722600,1738765839579,-789.65,0.00015464,2]
[351722601,1738765839592,-500.0,0.00015464,2]
[351722602,1738765839601,-3558.22,0.00015464,2]
[351722603,1738765839611,-500.0,0.00015464,2]
[351722604,1738765839621,-500.0,0.00015464,2]
[351722605,1738765839630,-1440.9,0.00015464,2]
[351722606,1738765839639,-1177.82,0.00015464,2]
[351722607,1738765839648,-500.0,0.00015464,2]
[351722608,1738765839658,-500.0,0.00015464,2]
[351722609,1738765839667,-4117.99,0.00015464,2]
[351722610,1738765839675,-500.0,0.00015464,2]
[351722611,1738765839684,-1394.99,0.00015464,2]
[351722612,1738765839693,-500.0,0.00015464,2]
[351722613,1738765839702,-500.0,0.00015464,2]
[351722614,1738765839712,-500.0,0.00015464,2]
[351722615,1738765839721,-500.0,0.00015464,2]
[351722616,1738765839731,-500.0,0.00015464,2]
[351722617,1738765839741,-1127.59,0.00015464,2]
[351722618,1738765839750,-656.19,0.00015464,2]
[351722619,1738765839765,-982.98,0.00015464,2]
[351722620,1738765839775,-500.0,0.00015464,2]
[351722621,1738765839785,-559.21769704,0.00015464,2]
[351722622,1738765839795,-1432.26,0.00015464,2]
[351722623,1738765839804,-653.94,0.00015464,2]
[351722624,1738765839814,-719.45,0.00015464,2]
[351722625,1738765839824,-500.0,0.00015464,2]
[351722626,1738765839833,-500.0,0.00015464,2]
[351722627,1738765839843,-8275.04,0.00015464,2]
[351722628,1738765839853,-500.0,0.00015464,2]
[351722629,1738765839863,-1514.7,0.00015464,2]
[351722630,1738765839873,-500.0,0.00015464,2]
[351722631,1738765839884,-1585.42,0.00015464,2]
[351722632,1738765839893,-689.82,0.00015464,2]
[351722633,1738765839903,-500.0,0.00015464,2]
[351722634,1738765839913,-171.39519698,0.00015464,2]
[351722635,1738765839923,-646.10506854,0.00015464,2]
[351722636,1738765839932,-500.0,0.00015464,2]
[351722637,1738765839941,-3069.18,0.00015464,2]
[351722638,1738765839950,-657.43,0.00015464,2]
[351722639,1738765839960,-500.0,0.00015464,2]
[351722640,1738765839970,-500.0,0.00015464,2]
[351722641,1738765839980,-158.03693496,0.00015464,2]
[351722642,1738765839990,-500.0,0.00015464,2]
[351722643,1738765840000,-1666.54,0.00015464,2]
[351722644,1738765840014,-1750.73,0.00015464,2]
[351722645,1738765840024,-500.0,0.00015464,2]
[351722646,1738765840034,-500.0,0.00015464,2]
[351722647,1738765840043,-1009.29,0.00015464,2]
[351722648,1738765840053,-500.0,0.00015464,2]
[351722649,1738765840063,-500.0,0.00015464,2]
[351722650,1738765840073,-500.0,0.00015464,2]
[351722651,1738765840083,-514.94,0.00015464,2]
[351722652,1738765840093,-500.0,0.00015464,2]
[351722653,1738765840103,-500.0,0.00015464,2]
[351722654,1738765840113,-8083.43,0.00015464,2]
[351722655,1738765840122,-594.64,0.00015464,2]
[351722656,1738765840132,-500.0,0.00015464,2]
[351722657,1738765840142,-500.0,0.00015464,2]
[351722658,1738765840152,-500.0,0.00015464,2]
[351722659,1738765840162,-1174.57,0.00015464,2]
[351722660,1738765840171,-500.0,0.00015464,2]
[351722661,1738765840181,-584.83,0.00015464,2]
[351722662,1738765840191,-500.0,0.00015464,2]
[351722663,1738765840200,-500.0,0.00015464,2]
[351722664,1738765840210,-500.0,0.00015464,2]
[351722665,1738765840219,-500.0,0.00015464,2]
[351722666,1738765840229,-500.0,0.00015464,2]
[351722667,1738765840238,-2732.02,0.00015464,2]
[351722668,1738765840248,-500.0,0.00015464,2]
[351722669,1738765840260,-500.0,0.00015464,2]
[351722670,1738765840270,-41618.06,0.00015464,2]
[351722671,1738765840279,-500.0,0.00015464,2]
[351722672,1738765840289,-124655.58,0.00015464,2]
[351722673,1738765840299,-500.0,0.00015464,2]
[351722674,1738765840308,-500.0,0.00015465,2]
[351722675,1738765840318,-507.45835027,0.00015465,2]
[351722676,1738765840327,-500.0,0.00015465,2]
[351722677,1738765840337,-500.0,0.00015465,2]
[351722678,1738765840346,-500.0,0.00015465,2]
[351722679,1738765840355,-500.0,0.00015465,2]
[351722680,1738765840365,-500.0,0.00015465,2]
[351722681,1738765840375,-375.91110621,0.00015465,2]
[351722682,1738765840384,-500.0,0.00015465,2]
[351722683,1738765840393,-500.0,0.00015465,2]
[351722684,1738765840402,-500.0,0.00015465,2]
[351722685,1738765840411,-500.0,0.00015465,2]
[351722686,1738765840421,-551.6,0.00015465,2]
[351722687,1738765840430,-500.0,0.00015465,2]
[351722688,1738765840439,-500.0,0.00015465,2]
[351722689,1738765840449,-500.0,0.00015465,2]
[351722690,1738765840459,-616.66,0.00015465,2]
[351722691,1738765840468,-500.0,0.00015465,2]
[351722692,1738765840477,-500.0,0.00015465,2]
[351722693,1738765840487,-500.0,0.00015465,2]
[351722694,1738765840497,-500.0,0.00015465,2]
[351722695,1738765840511,-500.0,0.00015465,2]
[351722696,1738765840520,-500.0,0.00015465,2]
[351722698,1738765840529,-511.4767295,0.00015465,2]
[351722700,1738765840539,-228.63496614,0.00015465,2]
[351722702,1738765840548,-500.0,0.00015465,2]
[351722704,1738765840558,-500.0,0.00015465,2]
[351722706,1738765840568,-500.0,0.00015465,2]
[351722708,1738765840578,-500.0,0.00015465,2]
[351722709,1738765840587,-500.0,0.00015465,2]
[351722710,1738765840596,-500.0,0.00015465,2]
[351722711,1738765840606,-500.0,0.00015465,2]
[351722712,1738765840616,-500.0,0.00015465,2]
[351722713,1738765840625,-500.0,0.00015465,2]
[351722714,1738765840635,-500.0,0.00015465,2]
[351722715,1738765840644,-500.0,0.00015465,2]
[351722716,1738765840654,-500.0,0.00015465,2]
[351722717,1738765840663,-1825.73,0.00015465,2]
[351722718,1738765840673,-501.45373026,0.00015465,2]
[351722719,1738765840683,-500.0,0.00015465,2]
[351722720,1738765840692,-500.0,0.00015465,2]
[351722721,1738765840702,-742.34,0.00015465,2]
[351722722,1738765840712,-500.0,0.00015465,2]
[351722723,1738765840721,-500.0,0.00015465,2]
[351722724,1738765840731,-500.0,0.00015465,2]
[351722725,1738765840740,-158.80603905,0.00015465,2]
[351722726,1738765840750,-500.0,0.00015465,2]
[351722727,1738765840762,-500.0,0.00015465,2]
[351722728,1738765840771,-500.0,0.00015465,2]
[351722729,1738765840781,-500.0,0.00015465,2]
[351722730,1738765840790,-500.0,0.00015465,2]
[351722731,1738765840800,-532.49,0.00015465,2]
[351722732,1738765840810,-500.0,0.00015465,2]
[351722733,1738765840819,-500.0,0.00015465,2]
[351722734,1738765840828,-884.65,0.00015465,2]
[351722735,1738765840838,-500.0,0.00015465,2]
[351722736,1738765840848,-500.0,0.00015465,2]
[351722737,1738765840858,-500.0,0.00015465,2]
[351722738,1738765840867,-500.0,0.00015465,2]
[351722739,1738765840876,-645.8,0.00015465,2]
[351722740,1738765840885,-1175.08,0.00015465,2]
[351722741,1738765840893,-500.0,0.00015465,2]
[351722742,1738765840903,-731.7,0.00015465,2]
[351722743,1738765840912,-549.23,0.00015465,2]
[351722744,1738765840921,-500.0,0.00015465,2]
[351722745,1738765840931,-500.0,0.00015465,2]
[351722746,1738765840940,-789.68,0.00015465,2]
[351722747,1738765840950,-317.61058948,0.00015465,2]
[351722748,1738765840959,-385.87795808,0.00015465,2]
[351722749,1738765840968,-500.0,0.00015465,2]
[351722750,1738765840978,-500.0,0.00015465,2]
[351722751,1738765840987,-500.0,0.00015465,2]
[351722752,1738765840997,-500.0,0.00015465,2]
[351722753,1738765841008,-500.0,0.00015465,2]
[351722754,1738765841018,-500.0,0.00015465,2]
[351722755,1738765841028,-500.0,0.00015465,2]
[351722756,1738765841037,-500.0,0.00015465,2]
[351722757,1738765841047,-783.62,0.00015465,2]
[351722758,1738765841057,-500.0,0.00015465,2]
[351722759,1738765841066,-500.0,0.00015465,2]
[351722760,1738765841076,-500.0,0.00015465,2]
[351722761,1738765841085,-500.0,0.00015465,2]
[351722762,1738765841095,-500.0,0.00015465,2]
[351722763,1738765841105,-500.0,0.00015465,2]
[351722764,1738765841114,-500.0,0.00015465,2]
[351722765,1738765841123,-534.5336951,0.00015465,2]
[351722766,1738765841132,-500.0,0.00015465,2]
[351722767,1738765841142,-500.0,0.00015465,2]
[351722768,1738765841151,-500.0,0.00015465,2]
[351722769,1738765841161,-536.76494534,0.00015465,2]
[351722770,1738765841171,-574.96233317,0.00015465,2]
[351722771,1738765841180,-500.0,0.00015465,2]
[351722772,1738765841343,-500.0,0.00015465,2]
[351722773,1738765841353,-500.0,0.00015465,2]
[351722774,1738765841363,-668.91,0.00015465,2]
[351722775,1738765841372,-500.0,0.00015465,2]
[351722776,1738765841382,-627.23,0.00015465,2]
[351722777,1738765841392,-500.0,0.00015465,2]
[351722778,1738765841401,-500.0,0.00015465,2]
[351722779,1738765841412,-500.0,0.00015465,2]
[351722780,1738765841422,-504.12616618,0.00015465,2]
[351722781,1738765841431,-500.0,0.00015465,2]
[351722782,1738765841440,-500.0,0.00015465,2]
[351722783,1738765841451,-500.0,0.00015465,2]
[351722784,1738765841460,-500.0,0.00015465,2]
[351722785,1738765841470,-500.0,0.00015465,2]
[351722786,1738765841479,-500.0,0.00015465,2]
[351722787,1738765841489,-500.0,0.00015465,2]
[351722788,1738765841500,-500.0,0.00015465,2]
[351722789,1738765841515,-1274.54,0.00015465,2]
[351722790,1738765841524,-580.61,0.00015465,2]
[351722791,1738765841534,-500.0,0.00015465,2]
[351722792,1738765841543,-500.0,0.00015465,2]
[351722793,1738765841553,-500.0,0.00015465,2]
[351722794,1738765841562,-500.0,0.00015465,2]
[351722795,1738765841572,-500.0,0.00015465,2]
[351722796,1738765841581,-500.0,0.00015465,2]
[351722797,1738765841590,-500.0,0.00015465,2]
[351722798,1738765841600,-500.0,0.00015465,2]
[351722799,1738765841609,-403.82979152,0.00015465,2]
[351722800,1738765841619,-500.0,0.00015465,2]
[351722801,1738765841628,-500.0,0.00015465,2]
[351722802,1738765841638,-500.0,0.00015465,2]
[351722803,1738765841647,-788.11,0.00015465,2]
[351722804,1738765841656,-169.82424985,0.00015465,2]
[351722805,1738765841666,-500.0,0.00015465,2]
[351722806,1738765841675,-500.0,0.00015465,2]
[351722807,1738765841684,-522.48891497,0.00015465,2]
[351722808,1738765841694,-500.0,0.00015465,2]
[351722809,1738765841703,-500.0,0.00015465,2]
[351722810,1738765841712,-728.17,0.00015465,2]
[351722811,1738765841721,-500.0,0.00015465,2]
[351722812,1738765841731,-500.0,0.00015465,2]
[351722813,1738765841741,-500.0,0.00015465,2]
[351722814,1738765841750,-500.0,0.00015465,2]
[351722815,1738765841763,-425.6606626,0.00015465,2]
[351722816,1738765841774,-500.0,0.00015465,2]
[351722817,1738765841784,-500.0,0.00015465,2]
[351722818,1738765841794,-500.0,0.00015465,2]
[351722819,1738765841804,-559.41917771,0.00015465,2]
[351722820,1738765841813,-500.0,0.00015465,2]
[351722821,1738765841822,-500.0,0.00015465,2]
[351722822,1738765841831,-500.0,0.00015465,2]
[351722823,1738765841841,-500.0,0.00015465,2]
[351722824,1738765841850,-500.0,0.00015465,2]
[351722825,1738765841860,-500.0,0.00015465,2]
[351722826,1738765841870,-500.0,0.00015465,2]
[351722827,1738765841879,-500.0,0.00015465,2]
[351722828,1738765841889,-500.0,0.00015465,2]
[351722829,1738765841898,-500.0,0.00015465,2]
[351722830,1738765841907,-500.0,0.00015465,2]
[351722831,1738765841916,-1146.46,0.00015465,2]
[351722832,1738765841926,-500.0,0.00015465,2]
[351722833,1738765841935,-500.0,0.00015465,2]
[351722834,1738765841944,-500.0,0.00015465,2]
[351722835,1738765841954,-499.63457526,0.00015465,2]
[351722836,1738765841963,-500.0,0.00015465,2]
[351722837,1738765841973,-500.0,0.00015465,2]
[351722838,1738765841983,-500.0,0.00015465,2]
[351722839,1738765841992,-500.0,0.00015465,2]
[351722840,1738765842001,-506.57414621,0.00015465,2]
[351722841,1738765842012,-500.0,0.00015465,2]
[351722842,1738765842022,-500.0,0.00015465,2]
[351722843,1738765842031,-500.0,0.00015465,2]
[351722844,1738765842045,-835.03,0.00015465,2]
[351722845,1738765842055,-5435.49,0.00015465,2]
[351722846,1738765842064,-1241.2,0.00015465,2]
[351722847,1738765842073,-500.0,0.00015465,2]
[351722848,1738765842083,-500.0,0.00015465,2]
[351722849,1738765842093,-671.43,0.00015465,2]
[351722850,1738765842102,-503.38929507,0.00015465,2]
[351722851,1738765842111,-728.89,0.00015465,2]
[351722852,1738765842121,-402.65032782,0.00015465,2]
[351722853,1738765842130,-608.94,0.00015465,2]
[351722854,1738765842140,-5122.87,0.00015465,2]
[351722855,1738765842149,-500.0,0.00015465,2]
[351722856,1738765842159,-500.0,0.00015465,2]
[351722857,1738765842168,-500.0,0.00015465,2]
[351722858,1738765842178,-615.74,0.00015465,2]
[351722859,1738765842187,-500.0,0.00015465,2]
[351722860,1738765842197,-446.62244191,0.00015465,2]
[351722861,1738765842207,-500.0,0.00015465,2]
[351722862,1738765842217,-501.6,0.00015465,2]
[351722863,1738765842227,-2958.84,0.00015465,2]
[351722864,1738765842236,-1610.13,0.00015465,2]
[351722865,1738765842245,-500.0,0.00015465,2]
[351722866,1738765842259,-500.0,0.00015465,2]
[351722867,1738765842269,-923.43,0.00015465,2]
[351722868,1738765842279,-2816.85,0.00015465,2]
[351722869,1738765842288,-500.0,0.00015465,2]
[351722870,1738765842298,-500.0,0.00015465,2]
[351722871,1738765842308,-500.0,0.00015465,2]
[351722872,1738765842317,-500.0,0.00015465,2]
[351722873,1738765842327,-500.0,0.00015465,2]
[351722874,1738765842336,-602.21471939,0.00015465,2]
[351722875,1738765842346,-500.0,0.00015465,2]
[351722876,1738765842356,-500.0,0.00015465,2]
[351722877,1738765842365,-500.0,0.00015465,2]
[351722878,1738765842375,-500.0,0.00015465,2]
[351722879,1738765842384,-853.03,0.00015465,2]
[351722880,1738765842395,-500.0,0.00015465,2]
[351722881,1738765842404,-888.49,0.00015465,2]
[351722882,1738765842414,-500.0,0.00015465,2]
[351722883,1738765842424,-500.0,0.00015465,2]
[351722884,1738765842433,-500.0,0.00015465,2]
[351722885,1738765842443,-500.0,0.00015465,2]
[351722886,1738765842452,-1000.0,0.00015465,2]
[351722887,1738765842462,-502.59962938,0.00015465,2]
[351722888,1738765842471,-500.0,0.00015465,2]
[351722889,1738765842481,-500.0,0.00015465,2]
[351722890,1738765842490,-478.70808972,0.00015465,2]
[351722891,1738765842499,-500.0,0.00015465,2]
[351722892,1738765842513,-500.0,0.00015465,2]
[351722893,1738765842522,-501.84635472,0.00015465,2]
[351722894,1738765842531,-500.0,0.00015465,2]
[351722895,1738765842541,-1874.7,0.00015465,2]
[351722896,1738765842550,-500.0,0.00015465,2]
[351722897,1738765842560,-500.0,0.00015465,2]
[351722898,1738765842569,-500.0,0.00015465,2]
[351722899,1738765842578,-500.0,0.00015465,2]
[351722900,1738765842588,-188.0,0.00015465,2]
[351722901,1738765842597,-500.0,0.00015465,2]
[351722902,1738765842606,-500.0,0.00015465,2]
[351722903,1738765842615,-500.0,0.00015465,2]
[351722904,1738765842624,-500.0,0.00015465,2]
[351722905,1738765842633,-500.0,0.00015465,2]
[351722906,1738765842643,-500.0,0.00015465,2]
[351722907,1738765842652,-500.0,0.00015465,2]
[351722908,1738765842662,-500.0,0.00015465,2]
[351722909,1738765842671,-297.70420624,0.00015465,2]
[351722910,1738765842681,-500.0,0.00015465,2]
[351722911,1738765842689,-500.0,0.00015465,2]
[351722912,1738765842699,-632.09,0.00015465,2]
[351722913,1738765842708,-500.0,0.00015465,2]
[351722914,1738765842717,-500.0,0.00015465,2]
[351722915,1738765842726,-592.54012417,0.00015465,2]
[351722916,1738765842735,-264.22260139,0.00015465,2]
[351722917,1738765842744,-502.62023992,0.00015465,2]
[351722918,1738765842756,-500.0,0.00015465,2]
[351722919,1738765842765,-500.0,0.00015465,2]
[351722920,1738765842775,-500.0,0.00015465,2]
[351722921,1738765842784,-500.0,0.00015465,2]
[351722922,1738765842794,-35055.38,0.00015465,2]
[351722923,1738765842803,-500.0,0.00015465,2]
[351722924,1738765842812,-500.0,0.00015465,2]
[351722925,1738765842821,-178.0216987,0.00015465,2]
[351722926,1738765842831,-500.0,0.00015465,2]
[351722927,1738765842840,-500.0,0.00015465,2]
[351722928,1738765842849,-500.0,0.00015465,2]
[351722929,1738765842858,-2991.92,0.00015465,2]
[351722930,1738765842867,-1018.32,0.00015465,2]
[351722931,1738765842877,-300.0,0.00015465,2]
[351722932,1738765842886,-500.0,0.00015465,2]
[351722933,1738765842895,-500.0,0.00015465,2]
[351722934,1738765842905,-566.24,0.00015465,2]
[351722935,1738765842913,-500.0,0.00015465,2]
[351722936,1738765842923,-500.0,0.00015465,2]
[351722937,1738765842931,-500.0,0.00015465,2]
[351722938,1738765842941,-1064.95,0.00015465,2]
[351722939,1738765842951,-500.0,0.00015465,2]
[351722940,1738765842960,-500.0,0.00015465,2]
[351722941,1738765842970,-500.0,0.00015465,2]
[351722942,1738765842979,-500.0,0.00015465,2]
[351722943,1738765842989,-500.0,0.00015465,2]
[351722944,1738765842998,-500.0,0.00015465,2]
[351722945,1738765843009,-500.0,0.00015465,2]
[351722946,1738765843019,-500.0,0.00015465,2]
[351722947,1738765843028,-500.0,0.00015465,2]
[351722948,1738765843037,-500.0,0.00015465,2]
[351722949,1738765843046,-301.81898632,0.00015465,2]
[351722950,1738765843056,-500.0,0.00015465,2]
[351722951,1738765843065,-500.0,0.00015465,2]
[351722952,1738765843075,-500.0,0.00015465,2]
[351722953,1738765843084,-500.0,0.00015465,2]
[351722954,1738765843094,-500.0,0.00015465,2]
[351722955,1738765843103,-608.89,0.00015466,2]
[351722956,1738765843112,-500.0,0.00015466,2]
[351722958,1738765843122,-500.0,0.00015466,2]
[351722960,1738765843133,-500.0,0.00015466,2]
[351722962,1738765843142,-509.38,0.00015466,2]
[351722964,1738765843152,-738.13,0.00015466,2]
[351722966,1738765843162,-500.0,0.00015466,2]
[351722969,1738765843171,-536.24,0.00015466,2]
[351722971,1738765843181,-500.0,0.00015466,2]
[351722973,1738765843191,-1712.51,0.00015466,2]
[351722975,1738765843201,-500.0,0.00015466,2]
[351722977,1738765843210,-798.61,0.00015466,2]
[351722978,1738765843221,-500.0,0.00015466,2]
[351722980,1738765843231,-950.43,0.00015466,2]
[351722982,1738765843240,-500.0,0.00015466,2]
[351722983,1738765843250,-2232.96,0.00015466,2]
[351722984,1738765843261,-510.38444078,0.00015466,2]
[351722985,1738765843271,-500.0,0.00015466,2]
[351722986,1738765843280,-500.0,0.00015466,2]
[351722987,1738765843290,-500.0,0.00015466,2]
[351722988,1738765843299,-500.0,0.00015466,2]
[351722990,1738765843308,-634.6,0.00015466,2]
[351722992,1738765843318,-500.0,0.00015466,2]
[351722994,1738765843327,-500.0,0.00015466,2]
[351722996,1738765843337,-1021.44,0.00015466,2]
[351722998,1738765843346,-527.32,0.00015466,2]
[351723000,1738765843355,-1219.85,0.00015466,2]
[351723002,1738765843364,-500.0,0.00015466,2]
[351723004,1738765843374,-3689.68,0.00015466,2]
[351723006,1738765843383,-500.0,0.00015466,2]
[351723008,1738765843392,-500.0,0.00015466,2]
[351723010,1738765843402,-4016.2,0.00015466,2]
[351723012,1738765843411,-517.03,0.00015466,2]
[351723014,1738765843420,-500.0,0.00015466,2]
[351723016,1738765843429,-500.0,0.00015466,2]
[351723018,1738765843438,-500.0,0.00015466,2]
[351723020,1738765843447,-1366.59,0.00015466,2]
[351723022,1738765843456,-792.56,0.00015466,2]
[351723024,1738765843466,-1080.04,0.00015466,2]
[351723026,1738765843475,-500.0,0.00015466,2]
[351723028,1738765843484,-955.45,0.00015466,2]
[351723030,1738765843494,-1108.5,0.00015466,2]
[351723032,1738765843503,-500.0,0.00015466,2]
[351723034,1738765843516,-500.0,0.00015466,2]
[351723036,1738765843525,-500.0,0.00015466,2]
[351723038,1738765843535,-1210.39,0.00015466,2]
[351723040,1738765843544,-500.0,0.00015466,2]
[351723041,1738765843554,-1129.2,0.00015466,2]
[351723043,1738765843563,-500.0,0.00015466,2]
[351723045,1738765843572,-500.0,0.00015466,2]
[351723047,1738765843582,-500.0,0.00015466,2]
[351723049,1738765843591,-500.0,0.00015466,2]
[351723051,1738765843601,-639.76,0.00015466,2]
[351723054,1738765843612,-500.0,0.00015466,2]
[351723056,1738765843621,-500.0,0.00015466,2]
[351723058,1738765843631,-642.07,0.00015466,2]
[351723060,1738765843640,-1989.35,0.00015466,2]
[351723062,1738765843650,-597.31,0.00015466,2]
[351723064,1738765843660,-500.49649601,0.00015466,2]
[351723066,1738765843669,-500.0,0.00015466,2]
[351723068,1738765843679,-532.79,0.00015466,2]
[351723070,1738765843688,-796.62,0.00015466,2]
[351723072,1738765843697,-500.0,0.00015468,2]